Workbook

Sheet EscalaReferência
B2: NOTA:
B3: DAS QUATRO FICHAS DE REGISTO AVALIAÇÃO DO DESEMPENHO DOCENTE,
B4: cada Avaliador preenche apenas a ficha que corresponda à situação do Avaliado.
B5: Condições Especiais-Contratados-Quadro Sem Aulas Observadas e Quadro Com Aulas Observadas
B6: Preencher os campos não protegidos, os cálculos são automáticos*
B10: Escala de referência
B11: À classificação quantitativa de cada uma das menções qualitativas corresponde o seguinte: Excelente 10 - 9 valores; Muito Bom 8,9 - 8 valores; Bom 7,9 - 6,5 valores; Regular 6,4 - 5 valores; Insuficiente 4,9 - 1 valores.
B12: O docente demonstra falhas graves nos aspectos fundamentais do desempenho neste parâmetro ou apenas os demonstra de forma inconsistente | C12: 1,0 a 4,9
B13: O docente cumpre genericamente os aspetos fundamentais do desempenho neste parâmetro mas com algumas insuficiências ou lacunas | C13: 5,0 a 6,4
B14: O desempenho docente satisfaz globalmente o indicador da competência neste parâmetro | C14: 6,5 a 7,9
B15: O desempenho docente corresponde sempre ao indicador da competência no parâmetro e revela elevada e consistente qualidade | C15: 8,0 a 8,9
B16: O desempenho docente corresponde plenamente ao indicador da competência no parâmetro e revela elevada e consistente qualidade constituindo-se uma referência no grupo/escola/comunidade | C16: 9,0 a 10
B18: Classificação quantitativa (Introduzir valores) | C18: 8.95 | D18: <<
B19: Arredondado | C19: =ROUND(C18,1) -> 9
B20: Classificação qualitativa | C20: =IF(C19<5,"Insuf",IF(C19<6.5,"Regular",IF(C19<8,"Bom",IF(C19<9,"Muito Bom","Excelente")))) -> Excelente
B22: * se detetar algum erro de cálculo, por favor avise a SADD

Sheet Profs Condições Especiais
B3: FICHA DE REGISTO AVALIAÇÃO DO DESEMPENHO DOCENTE
B4: PRÉ-ESCOLAR, 1º, 2º E 3º CICLOS E SECUNDÁRIO-PROFESSORES DOS QUADROS (Condições Especiais)
B5: QUADRO A - Identificação do Avaliado | AD5: Escala de referência
E7: Nome: | T7: NIF: | AD7: À classificação quantitativa de cada uma das menções qualitativas correspondem os seguintes pontos: Excelente - 10-9 valores; Muito Bom -8,9-8 valores; Bom - 7,9- 6,5 valores; Regular -6,4-5,0 valores; Insuficiente - 4,9 - 0 valores.
E9: Departamento Curricular: | R9: Grupo de Recrutamento:
B11: QUADRO B - Identificação do Avaliador
AD12: O docente cumpre genericamente os aspetos fundamentais do desempenho neste parâmetro mas com algumas insuficiências ou lacunas
E13: Nome: | T13: NIF:
B15: Condição de Avaliador: | I15: Avaliador interno: | Q15: Coordenador de Departamento: | V15: Diretor:
E17: Departamento Curricular: | R17: Grupo de Recrutamento: | AD17: O desempenho docente corresponde sempre ao indicador da competência no parâmetro e revela elevada e consistente qualidade
B19: QUADRO C - Condições de Avaliação | AD19: O desempenho docente corresponde plenamente ao indicador da competência no parâmetro e revela elevada e consistente qualidade constituindo-se uma referência no grupo/escola/comunidade
B21: Período de avaliação: | F21: de | J21: a | K21: 2023-08-31 | P21: Componente letiva: | S21: Sim | T21: X | V21: Não
F23: Instituição onde exerceu funções: | G23: Agrupamento de Escolas da Trafaria | S23: Função exercida: | T23: Docente
B26: B | C26: PARTICIPAÇÃO NA ESCOLA E RELAÇÃO COM A COMUNIDADE EDUCATIVA | X26: =X27*0.8 -> 6.671111111
B27: B1 | C27: Participação na conceção, desenvolvimento e avaliação dos documentos institucionais orientadores da vida da escola | W27: =AVERAGE(W28:W30) -> 8.666666667 | X27: =AVERAGE(W27,W31,W35) -> 8.338888889
B28: B1.1 | C28: Contribui para a eficácia das estruturas de coordenação educativa e supervisão pedagógica, nos órgãos de administração e gestão e noutras estruturas em que participou. | W28: 8.6
B29: B1.2 | C29: Participa na conceção e uso de dispositivos de avaliação da escola. | W29: 8.6
B30: B1.3 | C30: Envolve-se em ações que visam a participação de pais e encarregados de educação e/ou outras entidades. | W30: 8.8
B31: B2 | C31: Participação nas estruturas de coordenação educativa e supervisão e nos órgãos de administração e gestão | W31: =AVERAGE(W32:W34) -> 7.6
B32: B2.1 | C32: Participa em projetos de trabalho colaborativo na escola. | W32: 9.3
B33: B2.2 | C33: Apresenta propostas que contribuem para a melhoria do desempenho da escola. | W33: 8.2
B34: B2.3 | C34: Contribui para a eficácia das estruturas de coordenação educativa e supervisão pedagógica e nos órgãos de administração. | W34: 5.3
B35: B3 | C35: Dinamização de Projetos e Atividades da escola que visam o Desenvolvimento da Comunidade | W35: =AVERAGE(W36:W37) -> 8.75
B36: B3.1 | C36: Envolve-se em projetos e atividades da escola que visam o desenvolvimento da comunidade. | W36: 9.3
B37: B3.2 | C37: Apresenta propostas que contribuem para a melhoria do desempenho da escola. | W37: 8.2
B38: C | C38: FORMAÇÃO CONTÍNUA E DESENVOLVIMENTO PROFISSIONAL | X38: =X39*0.2 -> 2
B39: C.1 | C39: Participa em ações de formação e em processos de atualização do conhecimento profissional. | X39: 10
T40: Classificação final proposta (0,60xA+0,20xB+0,20xC)
T41: Avaliação Final | U41: =X26+X38+#REF! -> 
C43: Pontuação Final: | U43: =ROUND(X26+X38,1) -> 8.7
C44: PROPOSTA DE CLASSIFICAÇÃO: | U44: =IF(U43<5,"Insuf",IF(U43<6.5,"Regular",IF(U43<8,"Bom","Muito Bom"))) -> Muito Bom
D46: Data: | E46: ____/ ____/ _____ | L46: O Avaliador:
D47: Data: | E47: ____/ ____/ _____ | L47: O Avaliado:
B59: Avaliação Final do Desempenho
B61: Classificação: _____________________________________ Menção Qualitativa: ________________________
B63: Fundamentação da avaliação:
B68: Aprovação pela Secção de Avaliação em: ______ / ______ / _________
B70: Assinaturas:
B77: Comunicação da Avaliação Final do Desempenho
B79: Tomei conhecimento
B81: Data: ______ / ______ / __________
B83: Assinatura do Avaliado: __________________________________

Sheet Profs Contratados
B3: FICHA DE REGISTO AVALIAÇÃO DO DESEMPENHO DOCENTE
B4: PRÉ-ESCOLAR, 1º, 2º E 3º CICLOS E SECUNDÁRIO-PROFESSORES CONTRATADOS
B5: QUADRO A - Identificação do Avaliado | AD5: Escala de referência
E7: Nome: | T7: NIF: | AD7: À classificação quantitativa de cada uma das menções qualitativas correspondem os seguintes pontos: Excelente - 10-9 valores; Muito Bom -8,9-8 valores; Bom - 7,9- 6,5 valores; Regular -6,4-5,0 valores; Insuficiente - 4,9 - 0 valores.
E9: Departamento Curricular: | R9: Grupo de Recrutamento:
B11: QUADRO B - Identificação do Avaliador
AD12: O docente cumpre genericamente os aspetos fundamentais do desempenho neste parâmetro mas com algumas insuficiências ou lacunas
E13: Nome: | T13: NIF:
B15: Condição de Avaliador: | I15: Avaliador interno: | Q15: Coordenador de Departamento: | V15: Diretor:
E17: Departamento Curricular: | R17: Grupo de Recrutamento: | AD17: O desempenho docente corresponde sempre ao indicador da competência no parâmetro e revela elevada e consistente qualidade
B19: QUADRO C - Condições de Avaliação | AD19: O desempenho docente corresponde plenamente ao indicador da competência no parâmetro e revela elevada e consistente qualidade constituindo-se uma referência no grupo/escola/comunidade
B21: Período de avaliação: | F21: de | J21: a | K21: 2023-08-31 | P21: Componente letiva: | S21: Sim | T21: X | V21: Não
F23: Instituição onde exerceu funções: | G23: Agrupamento de Escolas da Trafaria | S23: Função exercida: | T23: Docente
B26: A | C26: DIMENSÃO CIENTIFICA E PEDAGÓGICA | X26: =AVERAGE(X28,X34,X37)*0.6 -> 5.324
B27: A1 | C27: Preparação e organização das atividades letivas
B28: A1.1 | C28: Demonstra conhecimento científico, pedagógico e didático inerente à disciplina ou área curricular. | W28: 10 | X28: =AVERAGE(W28:W32) -> 8.8
B29: A1.2 | C29: Planifica o ensino de acordo com as finalidades e as aprendizagens previstas no currículo/orientações curriculares e rentabiliza os meios e recursos. | W29: 8.6
B30: A1.3 | C30: Integra a sua planificação no quadro dos vários níveis e âmbitos da decisão curricular, tendo em conta a articulação vertical e horizontal, em conjunto com os pares. | W30: 7.6
B31: A1.4 | C31: Concebe e planifica estratégias adequadas aos diferentes alunos e contextos. | W31: 9.3
B32: A1.5 | C32: Planifica de forma integrada e coerente os vários tipos de avaliação. | W32: 8.5
B33: A2 | C33: Relação pedagógica com os alunos
B34: A2.1 | C34: Promove e gere processos de comunicação e interação entre os alunos. | W34: 9 | X34: =AVERAGE(W34:W35) -> 9.3
B35: A2.2 | C35: Promove o respeito pelas regras de convivência e cidadania. | W35: 9.6
B36: A3 | C36: Processo de avaliação das aprendizagens dos alunos
B37: A3.1 | C37: Demonstra conhecimento científico, pedagógico e didático inerente à disciplina/área curricular. | W37: 8.5 | X37: =AVERAGE(W37:W41) -> 8.52
B38: A3.2 | C38: Desenvolve atividades de avaliação das aprendizagens para efeitos de diagnóstico, regulação do processo de ensino e avaliação e certificação de resultados. | W38: 9
B39: A3.3 | C39: Promove processos de autorregulação nos alunos que lhes permitam apreciar e melhorar os seus desempenhos. | W39: 8.6
B40: A3.4 | C40: Aplica instrumentos adequados à monitorização da sua atividade. | W40: 8.2
B41: A3.5 | C41: Reorienta a planificação e o desenvolvimento do ensino de acordo com a apreciação realizada. | W41: 8.3
B42: B | C42: PARTICIPAÇÃO NA ESCOLA E RELAÇÃO COM A COMUNIDADE EDUCATIVA | X42: =X43*0.4 -> 3.482222222
B43: B1 | C43: Participação na conceção, desenvolvimento e avaliação dos documentos institucionais orientadores da vida da escola | W43: =AVERAGE(W44:W46) -> 8.866666667 | X43: =AVERAGE(W43,W47,W51) -> 8.705555556
B44: B1.1 | C44: Contribui para a eficácia das estruturas de coordenação educativa e supervisão pedagógica, nos órgãos de administração e gestão e noutras estruturas em que participou. | W44: 9.3
B45: B1.2 | C45: Participa na conceção e uso de dispositivos de avaliação da escola. | W45: 9
B46: B1.3 | C46: Envolve-se em ações que visam a participação de pais e encarregados de educação e/ou outras entidades. | W46: 8.3
B47: B2 | C47: Participação nas estruturas de coordenação educativa e supervisão e nos órgãos de administração e gestão | W47: =AVERAGE(W48:W50) -> 8.2
B48: B2.1 | C48: Participa em projetos de trabalho colaborativo na escola. | W48: 8.2
B49: B2.2 | C49: Apresenta propostas que contribuem para a melhoria do desempenho da escola. | W49: 9.3
B50: B2.3 | C50: Contribui para a eficácia das estruturas de coordenação educativa e supervisão pedagógica e nos órgãos de administração. | W50: 7.1
B51: B3 | C51: Dinamização de Projetos e Atividades da escola que visam o Desenvolvimento da Comunidade | W51: =AVERAGE(W52:W53) -> 9.05
B52: B3.1 | C52: Envolve-se em projetos e atividades da escola que visam o desenvolvimento da comunidade. | W52: 9
B53: B3.2 | C53: Apresenta propostas que contribuem para a melhoria do desempenho da escola. | W53: 9.1
T54: Classificação final proposta (0,60xA+0,20xB+0,20xC)
T55: Avaliação Final | U55: =X42+#REF!+X26 -> 
C57: Pontuação Final: | U57: =ROUND(X26+X42,1) -> 8.8
C58: PROPOSTA DE CLASSIFICAÇÃO: | U58: =IF(U57<5,"Insuf",IF(U57<6.5,"Regular",IF(U57<8,"Bom","Muito Bom"))) -> Muito Bom
D60: Data: | E60: ____/ ____/ _____ | L60: O Avaliador:
D61: Data: | E61: ____/ ____/ _____ | L61: O Avaliado:
B63: Avaliação Final do Desempenho
B65: Classificação: ___________________________________ Menção Qualitativa: ________________________
B67: Fundamentação da avaliação:
B72: Aprovação pela Secção de Avaliação em: ______ / ______ / _________
B74: Assinaturas:
B81: Comunicação da Avaliação Final do Desempenho
B83: Tomei conhecimento
B85: Data: ______ / ______ / __________
B87: Assinatura do Avaliado: __________________________________

Sheet Profs Quadro Sem Aulas Obser
B3: FICHA DE REGISTO AVALIAÇÃO DO DESEMPENHO DOCENTE
B4: PRÉ-ESCOLAR, 1º, 2º E 3º CICLOS E SECUNDÁRIO-PROFESSORES DOS QUADROS (Sem Aulas Observadas)
B5: QUADRO A - Identificação do Avaliado | AD5: Escala de referência
E7: Nome: | T7: NIF: | AD7: À classificação quantitativa de cada uma das menções qualitativas correspondem os seguintes pontos: Excelente - 10-9 valores; Muito Bom -8,9-8 valores; Bom - 7,9- 6,5 valores; Regular -6,4-5,0 valores; Insuficiente - 4,9 - 0 valores.
E9: Departamento Curricular: | R9: Grupo de Recrutamento:
B11: QUADRO B - Identificação do Avaliador
AD12: O docente cumpre genericamente os aspetos fundamentais do desempenho neste parâmetro mas com algumas insuficiências ou lacunas
E13: Nome: | T13: NIF:
B15: Condição de Avaliador: | I15: Avaliador interno: | Q15: Coordenador de Departamento: | R15: X | V15: Diretor:
E17: Departamento Curricular: | R17: Grupo de Recrutamento: | AD17: O desempenho docente corresponde sempre ao indicador da competência no parâmetro e revela elevada e consistente qualidade
B19: QUADRO C - Condições de Avaliação | AD19: O desempenho docente corresponde plenamente ao indicador da competência no parâmetro e revela elevada e consistente qualidade constituindo-se uma referência no grupo/escola/comunidade
B21: Período de avaliação: | F21: de | J21: a | K21: 2023-08-31 | P21: Componente letiva: | S21: Sim | T21: X | V21: Não
F23: Instituição onde exerceu funções: | G23: Agrupamento de Escolas da Trafaria | S23: Função exercida: | T23: Docente
B26: A | C26: DIMENSÃO CIENTIFICA E PEDAGÓGICA | X26: =AVERAGE(X28,X34,X37)*0.6 -> 6
B27: A1 | C27: Preparação e organização das atividades letivas
B28: A1.1 | C28: Demonstra conhecimento científico, pedagógico e didático inerente à disciplina ou área curricular. | W28: 10 | X28: =AVERAGE(W28:W32) -> 10
B29: A1.2 | C29: Planifica o ensino de acordo com as finalidades e as aprendizagens previstas no currículo/orientações curriculares e rentabiliza os meios e recursos. | W29: 10
B30: A1.3 | C30: Integra a sua planificação no quadro dos vários níveis e âmbitos da decisão curricular, tendo em conta a articulação vertical e horizontal, em conjunto com os pares. | W30: 10
B31: A1.4 | C31: Concebe e planifica estratégias adequadas aos diferentes alunos e contextos. | W31: 10
B32: A1.5 | C32: Planifica de forma integrada e coerente os vários tipos de avaliação. | W32: 10
B33: A2 | C33: Relação pedagógica com os alunos
B34: A2.1 | C34: Promove e gere processos de comunicação e interação entre os alunos. | W34: 10 | X34: =AVERAGE(W34:W35) -> 10
B35: A2.2 | C35: Promove o respeito pelas regras de convivência e cidadania. | W35: 10
B36: A3 | C36: Processo de avaliação das aprendizagens dos alunos
B37: A3.1 | C37: Demonstra conhecimento científico, pedagógico e didático inerente à disciplina/área curricular. | W37: 10 | X37: =AVERAGE(W37:W41) -> 10
B38: A3.2 | C38: Desenvolve atividades de avaliação das aprendizagens para efeitos de diagnóstico, regulação do processo de ensino e avaliação e certificação de resultados. | W38: 10
B39: A3.3 | C39: Promove processos de autorregulação nos alunos que lhes permitam apreciar e melhorar os seus desempenhos. | W39: 10
B40: A3.4 | C40: Aplica instrumentos adequados à monitorização da sua atividade. | W40: 10
B41: A3.5 | C41: Reorienta a planificação e o desenvolvimento do ensino de acordo com a apreciação realizada. | W41: 10
B42: B | C42: PARTICIPAÇÃO NA ESCOLA E RELAÇÃO COM A COMUNIDADE EDUCATIVA | X42: =X43*0.2 -> 2
B43: B1 | C43: Participação na conceção, desenvolvimento e avaliação dos documentos institucionais orientadores da vida da escola | W43: =AVERAGE(W44:W46) -> 10 | X43: =AVERAGE(W43,W47,W51) -> 10
B44: B1.1 | C44: Contribui para a eficácia das estruturas de coordenação educativa e supervisão pedagógica, nos órgãos de administração e gestão e noutras estruturas em que participou. | W44: 10
B45: B1.2 | C45: Participa na conceção e uso de dispositivos de avaliação da escola. | W45: 10
B46: B1.3 | C46: Envolve-se em ações que visam a participação de pais e encarregados de educação e/ou outras entidades. | W46: 10
B47: B2 | C47: Participação nas estruturas de coordenação educativa e supervisão e nos órgãos de administração e gestão | W47: =AVERAGE(W48:W50) -> 10
B48: B2.1 | C48: Participa em projetos de trabalho colaborativo na escola. | W48: 10
B49: B2.2 | C49: Apresenta propostas que contribuem para a melhoria do desempenho da escola. | W49: 10
B50: B2.3 | C50: Contribui para a eficácia das estruturas de coordenação educativa e supervisão pedagógica e nos órgãos de administração. | W50: 10
B51: B3 | C51: Dinamização de Projetos e Atividades da escola que visam o Desenvolvimento da Comunidade | W51: =AVERAGE(W52:W53) -> 10
B52: B3.1 | C52: Envolve-se em projetos e atividades da escola que visam o desenvolvimento da comunidade. | W52: 10
B53: B3.2 | C53: Apresenta propostas que contribuem para a melhoria do desempenho da escola. | W53: 10
B54: C | C54: FORMAÇÃO CONTÍNUA E DESENVOLVIMENTO PROFISSIONAL | X54: =X55*0.2 -> 2
B55: C.1 | C55: Participa em ações de formação e em processos de atualização do conhecimento profissional. | X55: 10
T56: Classificação final proposta (0,60xA+0,20xB+0,20xC)
T57: Avaliação Final | U57: =X42+X54+X26 -> 10
C59: Pontuação Final: | U59: =ROUND(X26+X42+X54,1) -> 10
C60: PROPOSTA DE CLASSIFICAÇÃO: | U60: =IF(U59<5,"Insuf",IF(U59<6.5,"Regular",IF(U59<8,"Bom","Muito Bom"))) -> Muito Bom
D62: Data: | E62: ____/ ____/ _____ | L62: O Avaliador:
D63: Data: | E63: ____/ ____/ _____ | L63: O Avaliado:
B65: Avaliação Final do Desempenho
B67: Classificação: ___________________________________ Menção Qualitativa: ________________________
B69: Fundamentação da avaliação:
B74: Aprovação pela Secção de Avaliação em: ______ / ______ / _________
B76: Assinaturas:
B83: Comunicação da Avaliação Final do Desempenho
B85: Tomei conhecimento
B87: Data: ______ / ______ / __________
B89: Assinatura do Avaliado: __________________________________

Sheet Profs Quadro Com Aulas Observ
B3: FICHA DE REGISTO AVALIAÇÃO DO DESEMPENHO DOCENTE
B4: PRÉ-ESCOLAR, 1º, 2º E 3º CICLOS E SECUNDÁRIO-PROFESSORES DOS QUADROS (Com Aulas Observadas)
B5: QUADRO A - Identificação do Avaliado | AD5: Escala de referência
E7: Nome: | T7: NIF: | AD7: À classificação quantitativa de cada uma das menções qualitativas correspondem os seguintes pontos: Excelente - 10-9 valores; Muito Bom -8,9-8 valores; Bom - 7,9- 6,5 valores; Regular -6,4-5,0 valores; Insuficiente - 4,9 - 0 valores.
E9: Departamento Curricular: | R9: Grupo de Recrutamento:
B11: QUADRO B - Identificação do Avaliador
AD12: O docente cumpre genericamente os aspetos fundamentais do desempenho neste parâmetro mas com algumas insuficiências ou lacunas
E13: Nome: | T13: NIF:
B15: Condição de Avaliador: | I15: Avaliador interno: | Q15: Coordenador de Departamento: | R15: X | V15: Diretor:
E17: Departamento Curricular: | R17: Grupo de Recrutamento: | AD17: O desempenho docente corresponde sempre ao indicador da competência no parâmetro e revela elevada e consistente qualidade
B19: QUADRO C - Condições de Avaliação | AD19: O desempenho docente corresponde plenamente ao indicador da competência no parâmetro e revela elevada e consistente qualidade constituindo-se uma referência no grupo/escola/comunidade
B21: Período de avaliação: | F21: de | J21: a | K21: 2023-08-31 | P21: Componente letiva: | S21: Sim | T21: X | V21: Não
F23: Instituição onde exerceu funções: | G23: Agrupamento de Escolas da Trafaria | S23: Função exercida: | T23: Docente
B26: A | C26: DIMENSÃO CIENTIFICA E PEDAGÓGICA | X26: =(AVERAGE(X28,X34,X37)*0.3 +X42*0.7)*0.6 -> 5.4648
B27: A1 | C27: Preparação e organização das atividades letivas
B28: A1.1 | C28: Demonstra conhecimento científico, pedagógico e didático inerente à disciplina ou área curricular. | W28: 8.6 | X28: =AVERAGE(W28:W32) -> 8.68
B29: A1.2 | C29: Planifica o ensino de acordo com as finalidades e as aprendizagens previstas no currículo/orientações curriculares e rentabiliza os meios e recursos. | W29: 8.4
B30: A1.3 | C30: Integra a sua planificação no quadro dos vários níveis e âmbitos da decisão curricular, tendo em conta a articulação vertical e horizontal, em conjunto com os pares. | W30: 9
B31: A1.4 | C31: Concebe e planifica estratégias adequadas aos diferentes alunos e contextos. | W31: 9.4
B32: A1.5 | C32: Planifica de forma integrada e coerente os vários tipos de avaliação. | W32: 8
B33: A2 | C33: Relação pedagógica com os alunos
B34: A2.1 | C34: Promove e gere processos de comunicação e interação entre os alunos. | W34: 10 | X34: =AVERAGE(W34:W35) -> 10
B35: A2.2 | C35: Promove o respeito pelas regras de convivência e cidadania. | W35: 10
B36: A3 | C36: Processo de avaliação das aprendizagens dos alunos
B37: A3.1 | C37: Demonstra conhecimento científico, pedagógico e didático inerente à disciplina/área curricular. | W37: 10 | X37: =AVERAGE(W37:W41) -> 9.4
B38: A3.2 | C38: Desenvolve atividades de avaliação das aprendizagens para efeitos de diagnóstico, regulação do processo de ensino e avaliação e certificação de resultados. | W38: 9
B39: A3.3 | C39: Promove processos de autorregulação nos alunos que lhes permitam apreciar e melhorar os seus desempenhos. | W39: 9
B40: A3.4 | C40: Aplica instrumentos adequados à monitorização da sua atividade. | W40: 9
B41: A3.5 | C41: Reorienta a planificação e o desenvolvimento do ensino de acordo com a apreciação realizada. | W41: 10
B42: A4 | C42: CLASSIFICAÇÃO DA AVALIAÇÃO EXTERNA | X42: 9
B43: B | C43: PARTICIPAÇÃO NA ESCOLA E RELAÇÃO COM A COMUNIDADE EDUCATIVA | X43: =X44*0.2 -> 1.946666667
B44: B1 | C44: Participação na conceção, desenvolvimento e avaliação dos documentos institucionais orientadores da vida da escola | W44: =AVERAGE(W45:W47) -> 9.2 | X44: =AVERAGE(W44,W48,W52) -> 9.733333333
B45: B1.1 | C45: Contribui para a eficácia das estruturas de coordenação educativa e supervisão pedagógica, nos órgãos de administração e gestão e noutras estruturas em que participou. | W45: 9
B46: B1.2 | C46: Participa na conceção e uso de dispositivos de avaliação da escola. | W46: 8.6
B47: B1.3 | C47: Envolve-se em ações que visam a participação de pais e encarregados de educação e/ou outras entidades. | W47: 10
B48: B2 | C48: Participação nas estruturas de coordenação educativa e supervisão e nos órgãos de administração e gestão | W48: =AVERAGE(W49:W51) -> 10
B49: B2.1 | C49: Participa em projetos de trabalho colaborativo na escola. | W49: 10
B50: B2.2 | C50: Apresenta propostas que contribuem para a melhoria do desempenho da escola. | W50: 10
B51: B2.3 | C51: Contribui para a eficácia das estruturas de coordenação educativa e supervisão pedagógica e nos órgãos de administração. | W51: 10
B52: B3 | C52: Dinamização de Projetos e Atividades da escola que visam o Desenvolvimento da Comunidade | W52: =AVERAGE(W53:W54) -> 10
B53: B3.1 | C53: Envolve-se em projetos e atividades da escola que visam o desenvolvimento da comunidade. | W53: 10
B54: B3.2 | C54: Apresenta propostas que contribuem para a melhoria do desempenho da escola. | W54: 10
B55: C | C55: FORMAÇÃO CONTÍNUA E DESENVOLVIMENTO PROFISSIONAL | X55: =X56*0.2 -> 2
B56: C.1 | C56: Participa em ações de formação e em processos de atualização do conhecimento profissional. | X56: 10
T57: Classificação final proposta (0,60xA+0,20xB+0,20xC)
T58: Avaliação Final | U58: =X43+X55+X26 -> 9.411466667
C60: Pontuação Final: | U60: =ROUND(X26+X43+X55,1) -> 9.4
C61: PROPOSTA DE CLASSIFICAÇÃO: | U61: =IF(U60<5,"Insuf",IF(U60<6.5,"Regular",IF(U60<8,"Bom",IF(U60<9,"Muito Bom","Excelente")))) -> Excelente
D63: Data: | E63: ____/ ____/ _____ | L63: O Avaliador:
D64: Data: | E64: ____/ ____/ _____ | L64: O Avaliado:
B66: Avaliação Final do Desempenho
B68: Classificação: ___________________________________ Menção Qualitativa: ________________________
B70: Fundamentação da avaliação:
B75: Aprovação pela Secção de Avaliação em: ______ / ______ / _________
B77: Assinaturas:
B84: Comunicação da Avaliação Final do Desempenho
B86: Tomei conhecimento
B88: Data: ______ / ______ / __________
B90: Assinatura do Avaliado: __________________________________
